{"text_format":"1","workbook":"xlsx","n_sheets":3,"sheets":["Portada","BalanceGeneral","EstadodeResultados"],"not_rendered":{"charts":0,"images":8,"macros":1,"external_links":1,"defined_names":22,"comments":1,"pivot_tables":0},"unopened":[],"bounds":{"document_bytes":16777216,"sheet_cells":100000,"rows_first":2000,"rows_last":500,"rows_between":2000,"halvings":0,"cell_chars":16384,"cell_head_chars":4096},"cells_cut":0,"cells_raw":0,"read":"whole","date_system":"1900"}

{"sheet":"Portada","index":0,"n_rows":32,"n_cols":4,"rows_kept":32,"cut":false,"hidden":false,"merged":[[31,3,31,13]]}
[]
[]
[]
[]
[]
[]
[]
[]
[]
[]
[]
[]
[]
[]
[]
[]
[]
[]
[]
[]
[]
[]
[]
[]
[]
[]
[]
[]
[]
[]
[]
[null,null,null,"•     Bancolombia S.A, pone a disposición la presente herramienta, la cual tiene fines informativos y no comporta oferta o promesa de contratar.\n•     El resultado no comprende una certificación o recomendación comercial, contable, tributaria o legal \n•     La herramienta es indicativa y está destinada a proporcionar información y estimaciones de carácter general basadas en la información proporcionada por usted. \n•     La Herramienta es propiedad de Bancolombia S.A. No se permite la reproducción, venta, publicación, modificación, difusión o explotación comercial de la Herramienta o la información proporcionada por la misma."]

{"sheet":"BalanceGeneral","index":1,"n_rows":151,"n_cols":9,"rows_kept":151,"cut":false,"hidden":false,"merged":[[4,5,11,7],[45,4,46,4],[21,4,22,4],[21,5,22,5],[20,8,22,9],[27,8,28,9],[45,5,46,5],[44,8,46,9],[130,1,144,10],[72,3,73,3],[66,3,67,3],[87,3,88,3],[114,4,117,4],[66,8,67,9],[66,5,67,5],[72,5,73,5],[74,3,75,3],[74,4,75,4],[74,5,75,5],[72,8,73,9],[87,5,88,5],[18,3,20,3],[18,4,20,4],[18,5,20,5],[21,3,22,3],[122,3,122,8],[114,3,117,3],[45,3,46,3],[66,4,67,4],[72,4,73,4],[87,4,88,4],[87,8,89,9],[101,8,103,9],[114,5,117,5]]}
[]
[]
[]
[]
[null,null,null,null,null,"Herramienta que muestra el estado financiero de la empresa en un momento determinado, para esto se utilizan  elementos contables como activos, pasivos y patrimonio."]
[]
[]
[]
[]
[]
[]
[]
[]
[]
[]
[]
[]
[]
[null,null,null,"Seleccione los años que vas a contabilizar en este libro:",2017,2018]
[]
[null,null,null,null,null,null,null,null,"Bienes, derechos y otros recursos que posee  una empresa."]
[null,null,null,"ACTIVO",{"$f":"SUM(E29,E46)","v":0},{"$f":"SUM(F29,F46)","v":0}]
[]
[]
[]
[]
[]
[null,null,null,null,{"$f":"E19","v":2017},{"$f":"F19","v":2018},null,null,"Bienes y recursos que permanecen en el negocio en un plazo menor a un año."]
[null,null,null,"ACTIVO CORRIENTE",{"$f":"SUM(E30:E39)","v":0},{"$f":"SUM(F30:F39)","v":0}]
[null,null,null,"Caja General",{"$f":"SUM(E31:E32)","v":0},{"$f":"SUM(F31:F32)","v":0}]
[null,null,null,"Banco"]
[null,null,null,"Efectivo"]
[null,null,null,"Anticipos"]
[null,null,null,"Cuentas por Cobrar Clientes"]
[null,null,null,"Inventarios"]
[null,null,null,"Otros activos corrientes"]
[]
[]
[]
[]
[]
[]
[]
[]
[null,null,null,null,{"$f":"E19","v":2017},{"$f":"F19","v":2018},null,null,"Bienes e inversiones que se mantendran por periodos superiores a un año (LARGO PLAZO)"]
[null,null,null,"ACTIVO NO CORRIENTE",{"$f":"SUM(E49,E59)","v":0},{"$f":"SUM(F49,F59)","v":0}]
[]
[]
[null,null,null,"ACTIVO FIJO",{"$f":"E50-E51+SUM(E52:E57)","v":0},{"$f":"F50-F51+SUM(F52:F57)","v":0}]
[null,null,null,"Propiedad, planta y equipo"]
[null,null,null,"Depreciación acumulada"]
[null,null,null,"Otros activos fijos"]
[]
[]
[]
[]
[]
[]
[null,null,null,"OTROS ACTIVOS NO CORRIENTES",{"$f":"SUM(E60:E64)","v":0},{"$f":"SUM(F60:F64)","v":0}]
[null,null,null,"Inversiones a largo plazo"]
[null,null,null,"Cuentas por cobrar a socios"]
[null,null,null,"Otros"]
[]
[]
[]
[null,null,null,null,{"$f":"E19","v":2017},{"$f":"F19","v":2018}]
[null,null,null,"PASIVOS ",{"$f":"SUM(E73,E88)","v":0},{"$f":"SUM(F73,F88)","v":0},null,null,"Deudas y Obligaciones de la empresa"]
[]
[]
[]
[]
[null,null,null,null,{"$f":"E19","v":2017},{"$f":"F19","v":2018}]
[null,null,null,"PASIVO CORRIENTE",{"$f":"SUM(E75:E84)","v":0},{"$f":"SUM(F75:F84)","v":0},null,null,"Deudas u Obligaciones con vencimiento inferior a un año (CORTO PLAZO)"]
[]
[null,null,null,"Obligaciones financieras             (< a 12 meses)"]
[]
[null,null,null,"Obligaciones con particulares"]
[null,null,null,"Proveedores"]
[null,null,null,"Obligaciones Laborales"]
[null,null,null,"Impuestos por pagar"]
[null,null,null,"Cuentas por pagar a Socios"]
[null,null,null,"Otras pasivos"]
[]
[]
[]
[]
[null,null,null,null,{"$f":"E19","v":2017},{"$f":"F19","v":2018}]
[null,null,null,"PASIVO NO CORRIENTE",{"$f":"SUM(E90:E96)","v":0},{"$f":"SUM(F90:F96)","v":0},null,null,"Deudas u Obligaciones superiores a un año (LARGO PLAZO)"]
[]
[null,null,null,"Obligaciones financieras             (> a 12 meses)"]
[]
[]
[]
[]
[]
[]
[]
[]
[]
[]
[]
[null,null,null,null,{"$f":"E19","v":2017},{"$f":"F19","v":2018},null,null,"Aportaciones de los propietarios modificada por los resultados de operación de la empresa"]
[null,null,null,"PATRIMONIO",{"$f":"SUM(E104:E108)+SUM(E110:E113)","v":0},{"$f":"SUM(F104:F108)+SUM(F110:F113)","v":0}]
[null,null,null,"Capital Social"]
[null,null,null,"Reservas"]
[null,null,null,"Utilidades acumuladas"]
[null,null,null,"Utilidades del periodo"]
[null,null,null,"Otras cuentas patrimoniales"]
[null,null,null,"TOTAL UTILIDADES",{"$f":"E106+E107","v":0},{"$f":"F106+F107","v":0}]
[]
[]
[]
[]
[]
[null,null,null,"TOTAL PASIVO Y PATRIMONIO",{"$f":"SUM(E67,E103)","v":0},{"$f":"SUM(F67,F103)","v":0}]
[]
[]
[]
[]
[]
[]
[]
[null,null,null,"Comprobando si se cumple la ecuación patrimonial, tenemos:"]
[]
[null,null,null,"TOTAL ACTIVO",null,"TOTAL PASIVO Y PATRIMONIO"]
[null,null,{"$f":"E19","v":2017},{"$f":"E22","v":0},{"$f":"IF(D126=F126,\"Cumple Ecuaciòn Patrimonial, sigue avanzando\",\"ERROR, No cumple Ecuaciòn Patrimonial, tus cuentas estan desequilibradas\")","v":"Cumple Ecuaciòn Patrimonial, sigue avanzando"},{"$f":"E115","v":0}]
[null,null,{"$f":"F19","v":2018},{"$f":"F22","v":0},{"$f":"IF(D127=F127,\"Cumple Ecuaciòn Patrimonial, sigue avanzando\",\"ERROR, No cumple Ecuaciòn Patrimonial, tus cuentas estan desequilibradas\")","v":"Cumple Ecuaciòn Patrimonial, sigue avanzando"},{"$f":"F115","v":0}]
[]
[]
[]
[]
[]
[]
[]
[]
[]
[]
[]
[]
[]
[]
[]
[]
[]
[]
[]
[]
[null,"•     Bancolombia S.A, pone a disposición la presente herramienta, la cual tiene fines informativos y no comporta oferta o promesa de contratar."]
[null,"•     El resultado no comprende una certificación o recomendación comercial, contable, tributaria o legal "]
[null,"•     La herramienta es indicativa y está destinada a proporcionar información y estimaciones de carácter general basadas en la información proporcionada por usted. "]
[null,"•     La Herramienta es propiedad de Bancolombia S.A. No se permite la reproducción, venta, publicación, modificación, difusión o explotación comercial de la Herramienta o la información proporcionada por la misma."]

{"sheet":"EstadodeResultados","index":2,"n_rows":101,"n_cols":14,"rows_kept":101,"cut":false,"hidden":false,"merged":[[77,8,77,9],[77,10,77,11],[44,4,47,8],[48,11,48,14],[49,11,51,14],[57,2,60,15],[74,13,75,15],[70,13,72,15],[77,13,78,15],[63,13,65,15],[75,8,75,9],[75,10,75,11],[71,8,71,9],[71,10,71,11],[68,10,68,11],[67,10,67,11],[67,8,67,9],[68,8,68,9],[64,8,64,9],[64,10,64,11],[61,8,61,9],[61,10,61,11],[66,8,66,9],[66,10,66,11],[65,8,65,9],[65,10,65,11],[63,8,63,9],[63,10,63,11],[62,8,62,9],[62,10,62,11],[49,4,53,8],[48,4,48,8],[31,4,31,8],[32,11,32,12],[32,4,32,5],[38,2,41,8],[40,11,40,15],[41,11,44,15],[43,4,43,8],[33,2,37,8],[33,11,36,14],[31,12,31,13],[3,8,10,11],[23,4,23,8],[23,11,23,15],[24,4,26,8],[24,11,29,15],[18,2,20,15],[76,8,76,9],[76,10,76,11],[74,10,74,11],[74,8,74,9],[73,8,73,9],[73,10,73,11],[72,8,72,9],[72,10,72,11],[70,10,70,11],[70,8,70,9],[69,8,69,9],[69,10,69,11]]}
[]
[]
[]
[null,null,null,null,null,null,null,null,"Herramienta que sirve para determinar la rentabilidad, ya que muestra de manera detallada todos los ingresos,gastos, pérdidas o beneficios en un determinado periodo."]
[]
[]
[]
[]
[]
[]
[]
[]
[]
[]
[]
[]
[]
[]
[null,null,"Para lograr mayor claridad sobre los ingresos y gastos que hacen parte de cada uno de los conceptos de la estructura del estado de resultados, a continuación les presentamos algunos ejemplos que serviran como ilustración:"]
[]
[]
[]
[]
[null,null,null,null,"Ingresos por actividad ordinaria",null,null,null,null,null,null,"Gastos de Administración"]
[null,null,null,null,"Aquellos percibidos por el desarrollo de la actividad principal del negocio, por ejemplo: ventas  de productos o prestación de servicios.",null,null,null,null,null,null,"Relacionados con el funcionamiento general del negocio, por ejemplo: Materiales de oficina, Pago de servicios públicos, Alquiles de locales, Gastos de correspondencia, de viajes."]
[]
[]
[]
[]
[null,null,null,null,"Costos de la mercancia vendida"]
[]
[null,null,null,null,"¿ Cuanto le costó a la empresa la realización del producto o servicio? "]
[null,null,null,null,"Por ejemplo:",null,null,null,null,null,null,"Gastos de Ventas"]
[null,null,"   Costo para empresas comerciales: Inventario inicial (Productos no vendidos al final del ejercicio anterior) + Compras (Mercancias que se necesitan para comercializar) - Inventario Final( Productos no vendidos durante el ejercicio presente)",null,null,null,null,null,null,null,null,"Remuneraciones y Comisiones pagadas al personal de ventas, propaganda, promoción, etc"]
[]
[]
[]
[]
[null,null,"Costo para empresas industriales: Inventario inicial + Costo de producción (Valor de factores necesarios para obtener un producto terminado) - Inventario final"]
[]
[null,null,null,null,null,null,null,null,null,null,null," Gasto por intereses"]
[null,null,null,null,null,null,null,null,null,null,null,"Dentro de estos gastos se encuentran los intereses de obligaciones financieras, tanto con bancos como particulares."]
[]
[null,null,null,null,"Otros gastos no operacionales"]
[null,null,null,null,"Dentro de estos gastos se encuentran, comisiones, primas de seguros, gastos bancarios diferentes a intereses, 4x1000 y otros."]
[]
[]
[]
[null,null,null,null,"Otros ingresos no operacionales",null,null,null,null,null,null,"Gastos por Impuestos sobre las Ganancias"]
[null,null,null,null,"Hace referencia a los intereses y rendimientos recibidos por concepto de préstamos e inversiones realizadas, recuperacion de costos y gastos de ejercicios anteriores, venta de un activo, entre otros.",null,null,null,null,null,null,"Pago porcentual de la utilidad generada antes de impuestos."]
[]
[]
[]
[]
[]
[]
[]
[null,null,"Después de la explicación de los diferentes conceptos es necesario proceder a registrar los montos en la siguiente estructura de Estado de Resultados:"]
[]
[]
[]
[null,null,null,null,null,null,null,null,{"$f":"BalanceGeneral!$E$19","v":2017},null,{"$f":"BalanceGeneral!$F$19","v":2018}]
[null,null,null,"Ingresos por actividad ordinaria"]
[null,null,null,"Costos de la mercancia vendida",null,null,null,null,null,null,null,null,null,"Muestra lo que se gana por el producto o servicio vendido sin tener en cuenta los gastos"]
[null,null,null,"UTILIDAD BRUTA",null,null,null,null,{"$f":"(I63-I64)","v":0},null,{"$f":"(K63-K64)","v":0}]
[null,null,null,"Gastos de Administración"]
[null,null,null,"Gastos de Ventas"]
[null,null,null,"GASTOS DE OPERACIÓN",null,null,null,null,{"$f":"SUM(I66,I67)","v":0},null,{"$f":"SUM(K66,K67)","v":0}]
[null,null,null,"UTILIDAD EBITDA",null,null,null,null,{"$f":"(I65-I68)","v":0},null,{"$f":"(K65-K68)","v":0}]
[null,null,null,"Amortizaciones"]
[null,null,null,"Depreciaciones",null,null,null,null,null,null,null,null,null,"Ganancia obtenida de sus principales operaciones comerciales,sin intereses ni impuestos"]
[null,null,null,"UTILIDAD OPERACIONAL",null,null,null,null,{"$f":"I69-I70-I71","v":0},null,{"$f":"K69-K70-K71","v":0}]
[null,null,null,"Otros ingresos no operacionales"]
[null,null,null,"Otros gastos no operacionales"]
[null,null,null,"Gastos por Intereses",null,null,null,null,null,null,null,null,null,"Utilidad depurada de todo concepto operativo y financiero"]
[null,null,null,"UTILIDAD ANTES DE IMPUESTOS",null,null,null,null,{"$f":"I72+I73-I74-I75","v":0},null,{"$f":"K72+K73-K74-K75","v":0}]
[null,null,null,"Gasto por impuestos sobre las ganancias"]
[null,null,null,"UTILIDAD NETA DEL PERIODO",null,null,null,null,{"$f":"I76-I77","v":0},null,{"$f":"K76-K77","v":0},null,null,"Es la utilidad que efectivamente se distribuye a los socios"]
[]
[]
[]
[]
[]
[]
[]
[]
[]
[]
[]
[]
[]
[]
[]
[]
[]
[]
[]
[null,null,"•     Bancolombia S.A, pone a disposición la presente herramienta, la cual tiene fines informativos y no comporta oferta o promesa de contratar."]
[null,null,"•     El resultado no comprende una certificación o recomendación comercial, contable, tributaria o legal "]
[null,null,"•     La herramienta es indicativa y está destinada a proporcionar información y estimaciones de carácter general basadas en la información proporcionada por usted. "]
[null,null,"•     La Herramienta es propiedad de Bancolombia S.A. No se permite la reproducción, venta, publicación, modificación, difusión o explotación comercial de la Herramienta o la información proporcionada por la misma."]